[Event "FIDE Candidates 2024"]
[Site "Toronto"]
[Date "2024.04.20"]
[Round "13.2"]
[White "Praggnanandhaa R"]
[Black "Caruana, Fabiano"]
[Result "0-1"]
[ECO "B30"]
[WhiteElo "2747"]
[BlackElo "2803"]
[Annotator "TA"]
[PlyCount "178"]
[EventDate "2024.04.02"]
[EventType "tourn"]
[EventCountry "CAN"]
[SourceTitle "playchess.com"]
[Source "ChessBase"]
[SourceQuality "1"]
[TimeControl "40/7200:1800+30"]

{[%evp 101,178,-109,-109,-109,-109,-111,-95,-103,-112,-168,-166,-162,-161,-156,-166,-175,-93,-94,-73,-93,-56,-77,-73,-77,-75,-112,-36,-71,-49,-81,-33,-30,-32,-139,-175,-347,-344,-459,-474,-373,-454,-451,-457,-447,-288,-359,-335,-350,-308,-369,-353,-653,-536,-585,-489,-733,-733,-771,-884,-895,-884,-783,-716,-5959,-5933,-29977,-29978,-29978,-29978,-29982,-29983,-29984,-29985,-29985,-29986,-29986,-29987,-29987,-29988]} 1. e4 {[%emt 0:00:23]} c5 {[%emt 0:00:05]} 2. Nf3 {[%emt 0:00:05]} Nc6 {[%emt 0:00:05]} 3. Bb5 {[%emt 0:00:10]} Nf6 {[%emt 0:00:06]} 4. Bxc6 {[%emt 0:00:32]} dxc6 {[%emt 0:00:08]} 5. d3 {[%emt 0:00:05]} Qc7 {[%emt 0:00:10]} 6. Nbd2 {[%emt 0:00:19] B30: Sicilian: 2...Nc6 3 Bb5, lines without ...g6.} e5 {[%emt 0:00:36]} 7. a4 $146 {[%emt 0:01:14]} ({Predecessor:} 7. Nc4 Nd7 8. a4 b6 9. b3 Bd6 10. O-O O-O 11. Nh4 Re8 12. Nf5 Bf8 13. Bb2 {0-1 Sjugirov,S (2699)-Mamedov,R (2636) Titled Tuesday intern op 04th Jul Late blitz 2023 (5)}) 7... Be6 {[%emt 0:05:31]} 8. b3 {[%emt 0:01:25]} Be7 {[%emt 0:03:14]} 9. Nc4 {[%emt 0:20:37]} Nd7 {[%emt 0:01:06]} 10. Ng5 {[%emt 0:00:57]} Bxc4 {[%emt 0:21:34]} 11. bxc4 {[%emt 0:00:10]} Nf8 {[%emt 0:00:52]} 12. Qg4 {[%emt 0:16:11]} h5 {[%emt 0:08:50]} 13. Qf5 {[%emt 0:06:43]} Bd6 {[%emt 0:05:33]} 14. O-O {[%emt 0:12:56]} Qe7 {[%emt 0:00:00]} 15. Qh3 {[%emt 0:00:00]} f6 {[%emt 0:00:00]} 16. Nf3 {[%emt 0:00:00]} g5 {[%emt 0:09:08]} 17. Nd2 {[%emt 0:18:00]} Ne6 {[%emt 0:01:04]} 18. Re1 {[%emt 0:00:58]} g4 {[%emt 0:02:11]} 19. Qe3 {[%emt 0:02:02]} O-O-O {[%emt 0:01:13]} 20. Qe2 {[%emt 0:03:47]} Rdg8 {[%emt 0:06:31]} 21. Nf1 {[%emt 0:06:59]} h4 {[%emt 0:01:50]} 22. Ne3 {[%emt 0:00:09]} Nd4 {[%emt 0:12:13]} 23. Qd1 {[%emt 0:00:07]} h3 {[%emt 0:01:47]} 24. g3 {[%emt 0:00:04]} Nf3+ {[%emt 0:04:07]} 25. Kh1 {[%emt 0:00:04]} Nxe1 {[%emt 0:00:18]} 26. Qxe1 {[%emt 0:00:05]} Qd7 {[%emt 0:00:20]} 27. Rb1 {[%emt 0:03:30]} Bf8 {[%emt 0:01:37]} 28. Ba3 {[%emt 0:01:40]} Kb8 {[%emt 0:03:18]} 29. Qe2 {[%emt 0:01:20]} Ka8 {[%emt 0:00:40]} 30. Kg1 {[%emt 0:02:55]} Rh7 {[%emt 0:02:40]} 31. Qd1 {[%emt 0:00:16]} Rhg7 {[%emt 0:00:59]} 32. Kf1 {[%emt 0:03:27]} Qd8 {[%emt 0:00:35]} 33. Qe1 {[%emt 0:00:07]} Rg5 {[%emt 0:02:22]} 34. Rb3 {[%emt 0:00:29]} Rh5 {[%emt 0:01:12]} 35. Rb1 {[%emt 0:00:35]} Bd6 {[%emt 0:01:29]} 36. Bb2 {[%emt 0:00:31]} Bc7 {[%emt 0:01:03]} 37. Bc3 {[%emt 0:00:11]} Qd7 {[%emt 0:01:19]} 38. Qd1 {[%emt 0:01:37]} Bd6 {[%emt 0:01:09]} 39. Qe2 {[%emt 0:03:10]} Bf8 {[%emt 0:00:16]} 40. f3 {[%emt 0:00:00]} gxf3 {[%emt 0:00:00]} 41. Qxf3 {[%emt 0:02:35]} Rh7 {[%emt 0:00:31]} 42. Nf5 {[%emt 0:01:56]} Qe8 {[%emt 0:03:29]} 43. Bd2 {[%emt 0:01:58]} Qh5 {[%emt 0:07:39]} 44. Qxh5 {[%emt 0:05:03]} Rxh5 {[%emt 0:00:05]} 45. Ke2 {[%emt 0:00:06]} b6 {[%emt 0:02:26]} 46. Kf3 {[%emt 0:00:18]} Rh7 {[%emt 0:00:42]} 47. g4 {[%emt 0:03:43]} Be7 {[%emt 0:08:04]} 48. Kg3 {[%emt 0:01:22]} Bd8 {[%emt 0:00:15]} 49. Be3 {[%emt 0:00:44]} a5 {[%emt 0:00:55]} 50. Rb3 {[%emt 0:07:03]} Ka7 {[%emt 0:00:07]} 51. Rb1 {[%emt 0:00:06]} Ka6 {[%emt 0:00:06]} 52. Rb2 {[%emt 0:01:29]} Bc7 {[%emt 0:01:00]} 53. Rb1 {[%emt 0:00:27]} Rb8 {[%emt 0:00:30]} 54. Rf1 {[%emt 0:00:30]} b5 {[%emt 0:00:30]} 55. cxb5+ {[%emt 0:00:30]} (55. Bxc5 $17 {was necessary.} bxa4 56. Ba3) 55... cxb5 $19 {[%emt 0:00:30]} 56. Bxc5 {[%emt 0:00:30]} bxa4 {[%emt 0:03:16]} 57. Ne3 {[%emt 0:05:10] [#]} Bd8 $1 {[%emt 0:00:49]} 58. Ba3 {[%emt 0:00:57]} Rc8 {[%emt 0:04:55]} ({Black should try} 58... Rhb7 $19 {Threatens to win with ...Rb1.} 59. Kxh3 Rb1) 59. Nc4 $17 {[%emt 0:00:25]} Rc6 {[%emt 0:00:25]} 60. Ra1 {[%emt 0:03:24]} Bb6 {[%emt 0:00:47]} 61. Bc1 {[%emt 0:03:39]} Bd4 {[%emt 0:00:18]} 62. Rxa4 {[%emt 0:00:02]} Bc3 {[%emt 0:00:05]} 63. Ra3 {[%emt 0:01:05]} Bb4 {[%emt 0:03:01]} (63... Be1+ $17 64. Kf3 Rhc7) 64. Ra2 {[%emt 0:01:05]} Be1+ {[%emt 0:02:11]} 65. Kf3 {[%emt 0:00:01]} Rb7 {[%emt 0:00:15]} ({Black should play} 65... Rhc7 $17) 66. Bb2 $1 $15 {[%emt 0:03:33]} Rb5 {[%emt 0:01:53]} 67. c3 {[%emt 0:01:55]} (67. Ne3 $15) 67... Rc7 $17 {[%emt 0:01:28]} 68. Ba1 $2 {[%emt 0:00:23]} (68. Ra1 {was worth a try.}) 68... Rd7 $19 {[%emt 0:00:49]} 69. d4 {[%emt 0:00:39]} Rc7 {[%emt 0:02:55]} 70. Ne3 {[%emt 0:00:05]} exd4 {[%emt 0:01:43]} (70... Bxc3 71. Nd5 Rxd5 72. exd5 exd4 (72... Bxd4 73. Bxd4 exd4 74. Ra4 $11) 73. d6 $15) 71. cxd4 {[%emt 0:00:03]} Rb3 {[%emt 0:00:08]} 72. Kf4 {[%emt 0:01:00]} Rc1 {[%emt 0:00:50]} 73. e5 {[%emt 0:00:52]} fxe5+ {[%emt 0:02:45]} 74. dxe5 {[%emt 0:00:01] [#]} Rxa1 $1 {[%emt 0:00:32]} 75. Rxa1 {[%emt 0:00:03]} Bd2 {[%emt 0:00:02]} 76. e6 $2 {[%emt 0:01:21]} (76. Ra2 Bxe3+ 77. Ke4) 76... Bxe3+ $19 {[%emt 0:00:37]} (76... Rxe3 77. Rd1 $11) 77. Kf5 {[%emt 0:00:02]} Bc5 {[%emt 0:01:02]} 78. Rc1 {[%emt 0:01:02]} (78. Ra2 $142) 78... Kb6 $19 {[%emt 0:01:08]} 79. g5 {[%emt 0:00:19]} Be7 {[%emt 0:01:00]} 80. Kg6 {[%emt 0:00:02]} a4 {[%emt 0:02:05]} 81. Rc8 {[%emt 0:01:03]} Re3 {[%emt 0:00:43]} 82. Re8 {[%emt 0:00:23]} a3 {[%emt 0:00:17]} (82... Rxe6+ 83. Kf7 $17) 83. Ra8 {[%emt 0:00:13]} Kb7 {[%emt 0:00:58]} 84. Ra5 {[%emt 0:00:58]} Rxe6+ {[%emt 0:00:27]} 85. Kf7 {[%emt 0:00:14]} Ra6 {[%emt 0:00:08]} 86. Rxa6 {[%emt 0:00:14]} Kxa6 {[%emt 0:00:02]} 87. g6 {[%emt 0:00:05]} a2 {[%emt 0:00:17]} 88. g7 {[%emt 0:00:04]} a1=Q {[%emt 0:00:04]} (88... a1=B 89. g8=Q (89. g8=R Bef6 $11) 89... Baf6 90. Qc8+ Kb5 91. Qxh3 Bg5 92. Qd7+ Kc4 93. Qxe7 Bxe7 94. Kxe7) 89. g8=Q {[%emt 0:00:06]} Qa2+ {[%emt 0:00:04]} 0-1

[Event "FIDE Candidates 2024"]
[Site "Toronto"]
[Date "2024.04.20"]
[Round "13.4"]
[White "Gukesh D"]
[Black "Firouzja, Alireza"]
[Result "1-0"]
[ECO "C65"]
[WhiteElo "2743"]
[BlackElo "2760"]
[Annotator "TA"]
[PlyCount "125"]
[EventDate "2024.04.02"]
[EventType "tourn"]
[EventCountry "CAN"]
[SourceTitle "playchess.com"]
[Source "ChessBase"]
[SourceQuality "1"]
[TimeControl "40/7200:1800+30"]

{[%evp 11,125,11,16,6,12,12,7,2,10,2,4,0,14,-16,-10,-14,-10,-17,0,-23,0,0,0,-7,35,22,19,26,25,0,0,0,0,0,0,0,0,-5,0,-4,0,0,-1,-33,-19,-45,-38,-59,0,-22,-12,-29,-23,-26,0,7,26,34,41,35,36,27,37,35,44,36,51,25,35,0,35,0,27,0,0,0,97,87,117,27,188,176,183,185,209,187,186,168,183,194,558,556,543,505,600,577,560,376,369,0,581,577,599,704,669,654,1184,1116,923,900,5014,4702,29981,29981,29971,5624]} 1. e4 {[%emt 0:00:04]} e5 {[%emt 0:00:04]} 2. Nf3 {[%emt 0:00:06]} Nc6 {[%emt 0:00:04]} 3. Bb5 {[%emt 0:00:05]} Nf6 {[%emt 0:01:28]} 4. d3 {[%emt 0:00:07]} Bc5 {[%emt 0:00:06]} 5. O-O {[%emt 0:00:07]} Nd4 {[%emt 0:00:59]} 6. Nxd4 {[%emt 0:00:06]} Bxd4 {[%emt 0:00:04]} 7. Nd2 {[%emt 0:00:06]} c6 {[%emt 0:01:06]} 8. Bc4 {[%emt 0:00:06]} d6 {[%emt 0:06:53]} 9. c3 {[%emt 0:00:07] The position is equal.} Bb6 {[%emt 0:00:05]} 10. Bb3 {[%emt 0:00:05]} a5 {[%emt 0:01:38]} 11. Nc4 {[%emt 0:08:30]} Ba7 {[%emt 0:00:26]} 12. Ne3 {[%emt 0:19:38]} O-O {[%emt 0:12:23]} 13. Qf3 {[%emt 0:01:36] [#]} d5 $1 {[%emt 0:06:51]} 14. Bc2 {[%emt 0:07:32]} g6 {[%emt 0:17:04]} 15. Re1 {[%emt 0:13:04]} Be6 {[%emt 0:13:57]} 16. exd5 {[%emt 0:02:29]} cxd5 {[%emt 0:00:09][%cal Oa5a4,Bc6d5,Bd5e4][%mdl 32]} 17. h3 {[%emt 0:04:38]} Re8 {[%emt 0:07:40]} 18. Ba4 {[%emt 0:02:55]} e4 {[%emt 0:04:19]} 19. dxe4 {[%emt 0:00:30]} dxe4 {[%emt 0:00:07]} 20. Qe2 {[%emt 0:00:41]} Re7 {[%emt 0:04:14]} 21. Nf1 {[%emt 0:00:56]} Qc7 {[%emt 0:01:25]} 22. Bb3 {[%emt 0:07:04] Wards off Bc4} a4 {[%emt 0:02:33]} 23. Bxe6 {[%emt 0:04:11]} Rxe6 {[%emt 0:00:06]} 24. Be3 {[%emt 0:00:21] [#]} a3 $1 {[%emt 0:03:17]} 25. c4 {[%emt 0:07:05] Prevents Nd5.} (25. Bxa7 Rxa7) 25... Nh5 {[%emt 0:06:41]} (25... axb2 {is more complex.} 26. Qxb2 Qxc4 27. Qxb7 Qd5) 26. g3 {[%emt 0:05:47]} Bc5 {[%emt 0:04:07]} 27. b3 {[%emt 0:01:18]} f5 {[%emt 0:01:29]} 28. Bxc5 {[%emt 0:05:34]} Qxc5 {[%emt 0:00:07]} 29. Rad1 {[%emt 0:02:04]} Rf8 {[%emt 0:02:26]} ({Better is} 29... Rae8 $15) 30. Rd5 {[%emt 0:03:13]} Qe7 {[%emt 0:00:10]} 31. f4 {[%emt 0:00:41]} Nf6 {[%emt 0:01:42]} 32. Rd2 {[%emt 0:00:24]} g5 {[%emt 0:07:40]} 33. Ne3 {[%emt 0:00:05]} gxf4 {[%emt 0:00:14]} 34. gxf4 {[%emt 0:00:05][%cal Og1h2]} Qf7 {[%emt 0:03:29]} 35. Kh2 {[%emt 0:02:20]} (35. Nxf5 Nh5 36. Rd6 (36. Qg4+ $2 Kh8 $19) 36... Rg6+ (36... Qxf5 37. Rxe6 Nxf4 38. Qxe4 $11) 37. Rxg6+ Qxg6+ 38. Qg2 Rxf5 $19) 35... Nh5 {[%emt 0:00:36]} 36. Qf2 {[%emt 0:06:58]} Rg6 {[%emt 0:01:50]} 37. Rd5 {[%emt 0:00:51]} Ng7 {[%emt 0:00:53]} 38. Red1 {[%emt 0:00:10] Hoping for Rd7.} Rh6 $1 {[%emt 0:00:39]} 39. Rg1 $36 {[%emt 0:03:00][%mdl 2048] White is more active.} (39. Rd6 {looks sharper.} Ne6 40. Rg1+ Kh8 41. Qf1) 39... Rg6 {[%emt 0:00:14]} 40. Rgd1 {[%emt 0:00:00] aiming for Rd7.} Rh6 $1 {[%emt 0:00:00]} 41. Rg1 {[%emt 0:20:11]} Rg6 {[%emt 0:01:36]} 42. Qh4 {[%emt 0:00:43]} Rxg1 {[%emt 0:06:01]} 43. Kxg1 {[%emt 0:00:05]} Kh8 {[%emt 0:02:30]} (43... Qg6+ $11 {keeps the balance.} 44. Kf2 Ne6) 44. Kf2 $16 {[%emt 0:01:27] White is more active.} Rg8 {[%emt 0:01:25]} 45. Qg5 {[%emt 0:04:31]} ({White should try} 45. Qh6 $1 $16) 45... Qg6 $2 {[%emt 0:01:07]} (45... Ne6 $1 $11 46. Qxf5 Qg7) 46. Qxg6 $18 {[%emt 0:00:47]} (46. Nxf5 $2 {too greedy.} Nxf5 47. Qxg6 hxg6 $19) 46... hxg6 {[%emt 0:00:07][%mdl 4096] Endgame. [#] KRN-KRN} 47. Rd6 {[%emt 0:01:44] Prevents Ne6} Re8 {[%emt 0:10:30]} 48. Rxg6 {[%emt 0:02:00]} Ne6 {[%emt 0:00:29]} 49. Nd5 {[%emt 0:01:55]} Nd4 {[%emt 0:07:34][%cal Oe4e3]} 50. Rb6 {[%emt 0:02:30]} Nc2 $2 {[%emt 0:03:11]} (50... e3+ {is more resistant.} 51. Nxe3 Re4 52. Rxb7 Rxf4+ 53. Kg2 Re4) 51. Rxb7 {[%emt 0:02:57]} Re6 {[%emt 0:01:14] Wards off Nf6} 52. Re7 {[%emt 0:01:50]} Rh6 {[%emt 0:00:40]} 53. c5 {[%emt 0:00:38]} Nd4 {[%emt 0:00:01]} 54. Kg2 {[%emt 0:00:21]} Rg6+ {[%emt 0:00:27] [#]} 55. Kf2 {[%emt 0:00:01]} (55. Kf1 $142 $1) 55... Rh6 {[%emt 0:00:06]} 56. b4 {[%emt 0:01:34][%cal Bb3b4,Bb4b5,Bb5b6][%mdl 32]} Rxh3 {[%emt 0:00:22]} 57. Kg2 {[%emt 0:00:01]} Rh6 {[%emt 0:01:15]} 58. Rb7 {[%emt 0:00:01]} Kg8 {[%emt 0:01:06]} 59. b5 {[%emt 0:00:10]} Kf8 {[%emt 0:00:04]} 60. b6 {[%emt 0:01:19] Rc7 is the strong threat.} Rg6+ {[%emt 0:00:19]} 61. Kf2 {[%emt 0:00:01]} Rh6 {[%emt 0:00:01]} 62. Rc7 {[%emt 0:00:53]} Rh2+ {[%emt 0:01:18]} 63. Kg3 {[%emt 0:00:06] Weighted Error Value: White=0.19 (very precise) /Black=0.33.  Loses game:     	---       	Black=1      Mistake:       	White=2     	Black=3      Inaccurate:     	White=5     	Black=3      OK:         	White=25    	Black=17     Best:        	White=2     	Black=3      Strong:       	---       	Black=2} 1-0

[Event "FIDE Candidates 2024"]
[Site "Toronto"]
[Date "2024.04.21"]
[Round "14.1"]
[White "Nakamura, Hikaru"]
[Black "Gukesh D"]
[Result "1/2-1/2"]
[ECO "E51"]
[WhiteElo "2789"]
[BlackElo "2743"]
[Annotator "TA"]
[PlyCount "141"]
[EventDate "2024.04.02"]
[EventType "tourn"]
[EventCountry "CAN"]
[SourceTitle "playchess.com"]
[Source "ChessBase"]
[SourceQuality "1"]
[TimeControl "40/7200:1800+30"]

{[%evp 14,141,9,21,25,17,22,6,23,0,0,-28,-14,-11,-12,-25,0,-27,-35,-26,-23,-50,-52,-65,-47,-74,-70,-73,-60,-68,-65,-62,-65,-64,-67,-70,-75,-70,-26,-55,-49,-39,-28,-52,-47,-47,-35,-45,-27,-37,-39,-27,-33,-27,-24,-40,-40,-37,-9,-8,-8,-8,-6,-5,-6,-7,-6,-4,-5,-16,-8,-9,0,0,0,0,0,0,0,0,0,0,0,0,0,0,0,0,0,0,0,0,0,0,0,0,0,0,0,0,0,0,0,0,0,0,0,0,0,0,11,12,12,10,10,10,10,10,10,10,13,13,13,13,13,13,13,0,0,0]} 1. d4 {[%emt 0:00:03]} d5 {[%emt 0:00:08]} 2. c4 {[%emt 0:00:08]} dxc4 {[%emt 0:00:07]} 3. Nf3 {[%emt 0:00:16]} Nf6 {[%emt 0:00:07]} 4. e3 {[%emt 0:00:13]} e6 {[%emt 0:00:06]} 5. Bxc4 {[%emt 0:00:06]} Be7 {[%emt 0:00:03]} 6. Nc3 {[%emt 0:02:12]} c5 {[%emt 0:01:15]} 7. a3 {[%emt 0:11:50]} O-O {[%emt 0:04:16]} 8. O-O {[%emt 0:00:34]} a6 {[%emt 0:08:01]} 9. Qe2 {[%emt 0:08:47]} b5 {[%emt 0:04:46]} 10. Ba2 {[%emt 0:01:18]} cxd4 {[%emt 0:14:53]} 11. exd4 {[%emt 0:09:46]} b4 {[%emt 0:00:07]} 12. Ne4 {[%emt 0:10:01]} bxa3 {[%emt 0:09:59]} 13. bxa3 {[%emt 0:06:00]} Bb7 {[%emt 0:01:04]} 14. Nc3 {[%emt 0:13:34]} Nd5 {[%emt 0:04:04]} 15. Bd2 {[%emt 0:00:21]} Nxc3 {[%emt 0:05:31]} 16. Bxc3 {[%emt 0:00:26]} Nd7 {[%emt 0:00:33][%cal Oa8c8]} 17. Bb1 {[%emt 0:08:22]} Rc8 {[%emt 0:03:42]} 18. Bd2 {[%emt 0:03:43]} Nf6 {[%emt 0:00:56]} 19. Bd3 {[%emt 0:00:15]} Bxf3 {[%emt 0:02:07]} 20. Qxf3 {[%emt 0:00:03]} Qxd4 {[%emt 0:00:13] [#] aiming for ...Rcd8.} 21. Rfd1 {[%emt 0:00:14]} Qa4 {[%emt 0:01:43]} 22. Qb7 {[%emt 0:02:46]} Bc5 {[%emt 0:06:37]} (22... Bxa3 $2 23. Qf3 $18) 23. Be1 {[%emt 0:06:35]} a5 {[%emt 0:04:07]} (23... Bxa3 $2 {is the wrong capture.} 24. Qf3 $18) 24. Qb5 {[%emt 0:00:26]} Qxb5 {[%emt 0:10:44]} (24... Qf4 {looks sharper.} 25. g3 Qe5 26. Qxa5 Ng4) 25. Bxb5 {[%emt 0:00:21][%cal Og2g3]} Bb6 {[%emt 0:00:07]} 26. Rac1 {[%emt 0:00:56]} Nd5 {[%emt 0:00:22]} 27. Kf1 {[%emt 0:01:23]} Rfd8 {[%emt 0:00:58]} 28. a4 {[%emt 0:00:55]} Kf8 {[%emt 0:00:09]} 29. g3 {[%emt 0:00:26]} Ke7 {[%emt 0:02:56]} 30. Ke2 {[%emt 0:01:28]} f5 {[%emt 0:01:52]} 31. Rc4 {[%emt 0:01:09]} Rxc4 {[%emt 0:09:57]} 32. Bxc4 {[%emt 0:00:18]} Nb4 {[%emt 0:00:28]} 33. Rb1 {[%emt 0:06:08]} Bc5 {[%emt 0:00:19]} 34. Rc1 {[%emt 0:00:06][%cal Oc4e6]} Nc6 {[%emt 0:01:07]} 35. Bc3 {[%emt 0:00:49]} g5 {[%emt 0:03:34]} 36. Bb5 {[%emt 0:01:48] A strong pair of Bishops. The position is equal.} Ba3 {[%emt 0:01:35]} 37. Rc2 {[%emt 0:00:29]} Nd4+ {[%emt 0:01:18]} 38. Bxd4 {[%emt 0:00:05]} Rxd4 $11 {[%emt 0:00:02][%mdl 4096] Endgame. KRB-KRB} 39. Rc7+ {[%emt 0:00:05]} Kf6 {[%emt 0:00:13]} 40. Rxh7 {[%emt 0:00:00]} Bb4 {[%emt 0:00:00]} 41. Bd3 {[%emt 0:04:35]} e5 {[%emt 0:05:23]} 42. f3 {[%emt 0:02:16]} e4 {[%emt 0:10:50]} 43. fxe4 {[%emt 0:01:28]} fxe4 {[%emt 0:00:02]} 44. Bb5 {[%emt 0:00:53]} Be7 {[%emt 0:04:55]} 45. h4 {[%emt 0:04:41]} gxh4 {[%emt 0:00:17]} 46. gxh4 {[%emt 0:00:08]} Rb4 {[%emt 0:01:55]} 47. Rh5 {[%emt 0:01:00]} Kg7 {[%emt 0:02:09]} 48. Bd7 {[%emt 0:02:02]} Rd4 {[%emt 0:01:24]} 49. Be8 {[%emt 0:01:24]} Bd8 {[%emt 0:01:26]} 50. Rf5 {[%emt 0:01:34]} Bxh4 {[%emt 0:00:39]} 51. Rxa5 {[%emt 0:00:05]} Kf6 {[%emt 0:00:27]} 52. Ra8 {[%emt 0:04:16]} Bg5 {[%emt 0:00:53]} 53. Bh5 {[%emt 0:00:59]} Rd2+ {[%emt 0:00:12]} 54. Kf1 {[%emt 0:00:06]} Ra2 {[%emt 0:00:20]} 55. a5 {[%emt 0:02:10]} Ra1+ {[%emt 0:01:28]} 56. Kg2 {[%emt 0:00:24]} Ra2+ {[%emt 0:00:02]} 57. Kf1 {[%emt 0:00:36]} Ra1+ {[%emt 0:00:06]} 58. Ke2 {[%emt 0:00:13]} Ra2+ {[%emt 0:02:12]} 59. Kd1 {[%emt 0:00:18]} Rd2+ {[%emt 0:00:50]} 60. Ke1 {[%emt 0:00:06]} Rd5 {[%emt 0:00:05]} 61. Ke2 {[%emt 0:01:12]} Bd2 {[%emt 0:00:45]} 62. a6 {[%emt 0:02:39]} Rxh5 {[%emt 0:00:32] KRB-KR} 63. a7 {[%emt 0:03:21] [#] White wants to mate with Rf8+.} Ra5 {[%emt 0:00:05]} 64. Rf8+ {[%emt 0:00:07]} Ke5 {[%emt 0:00:06]} 65. a8=Q {[%emt 0:00:06]} Rxa8 {[%emt 0:00:03]} 66. Rxa8 {[%emt 0:00:06] KR-KB} e3 {[%emt 0:00:04]} 67. Ra4 {[%emt 0:00:03]} Kd5 {[%emt 0:00:11]} 68. Kd3 {[%emt 0:00:02]} Kc5 {[%emt 0:00:16]} 69. Re4 {[%emt 0:00:03]} Kd5 {[%emt 0:00:04]} 70. Rxe3 {[%emt 0:00:03]} Bxe3 {[%emt 0:00:06]} 71. Kxe3 {[%emt 0:00:35] Weighted Error Value: White=0.05 (flawless) /Black=0.03 (flawless) .  Inaccurate:     	White=5     	Black=2      OK:         	White=26    	Black=27     Best:        	White=4     	Black=2} 1/2-1/2